{"text_format":"3","workbook":"xlsx","n_sheets":1,"sheets":["Sheet1"],"not_rendered":{"defined_names":1},"read":"whole","date_system":"1900"}

{"sheet":"Sheet1","index":0,"n_rows":32,"n_cols":9,"rows_kept":32,"merged":[[0,0,0,8],[1,0,3,0],[1,1,3,1],[1,2,3,2],[1,3,3,3],[1,4,1,6],[1,7,1,8],[2,4,3,4],[2,5,3,5],[2,6,3,6],[2,7,3,7],[2,8,3,8],[30,0,30,5],[31,0,31,8]]}
["2023年“H”项目弱电工程工程量清单与报价表"]
["序号","项目名称","项目特征描述","计量\r\n单位","限价",null,null,"投标报价"]
[{"$nulls":4},"工程量","单价","合价","含税全费用综合单价\n","含税合价"]
[]
[" ","弱电工程"," "," "," "," "," ",null," "]
[1,"挖填沟槽土石方","1.土壤类别 ：现场综合考虑\r\n2.挖土深度 ：满足设计及规范要求\r\n3.弃土运距 ：现场综合考虑\r\n4.开挖方式：按现场实际综合考虑。\r\n5.开挖时需对现场已完工程进行保护，若发生破坏须进行恢复。该部分已综合考虑到单价内，不再单独计费。","m3",1200,20,{"$f":"F6*E6","v":24000},null,{"$f":"E6*H6","v":0}]
[2,"回填方","1.填方材料品种：综合，但需满足设计要求\n2.密实度：回填土分层夯填，压实系数满足设计要求\n3.回填土来源、装土方式及场内外运输方式、运距：投标人自行确定\n4.其他：满足石方回填要求的石方大改小费用含在该单价中，由投标人综合考虑\n5.做法：满足设计及现行施工技术、质量验收规范要求\n6.综合单价含完成该工作所需的人工，材料（含主材、辅材、周转材料），机械费（含机械的进出场费），措施费（安全文明施工费、季节性施工、临时设施、夜间施工、二次搬运等）、规费、税金等所有相关费用。","m3",1100,10,{"$f":"F7*E7","v":11000},null,{"$f":"E7*H7","v":0}]
[3,"余方弃置","1.废弃料品种：土方、石方综合（含淤泥），以及现场建(废)渣综合\n2.装取土方式：综合\n3.弃土、石（渣）场及场外运距：投标人自行踏勘现场考虑、自主确定弃土、石场及运距（含弃渣、土、石场费用、弃土费）\n4.做法：满足设计及现行施工技术、质量验收规范要求\n5.综合单价含完成该工作所需的人工，材料（含主材、辅材、周转材料），机械费（含机械的进出场费），措施费（安全文明施工费、季节性施工、临时设施、夜间施工、二次搬运等）、规费、税金等所有相关费用。","m3",100,15,1500,null,0]
[4,"电缆保护管UPVC50","1.名称 ：配管\n2.材质、规格：PVC50\n3.接地要求 ：按设计要求\n4.其他满足设计及规范要求","m",5741.92,7.5,43064.4,null,0]
[5,"电缆保护管SC50","1.名称 ：配管\n2.材质、规格：SC50\n3.接地要求 ：按设计要求\n4.其他满足设计及规范要求","m",274.06,32.5,8906.95,null,0]
[6,"电缆保护管SC125","1.名称 ：配管\n2.材质、规格：SC125\n3.接地要求 ：按设计要求\n4.其他满足设计及规范要求","m",69.08,45,3108.6,null,0]
[7,"弱电手孔井","1.手穿井：满足设计及规范要求\n2.盖板材质、规格 ：1200*900成品钢纤维种植井盖或装饰井盖；\n3.垫层：C20素混泥土垫层(模板综合考虑)\n4.18mm厚水泥砂浆抹灰\n5.手穿井砌筑：标砖砌筑(M10砂浆)\n7.井内敷设100mm厚细沙层\n8.其他满足设计及规范要求","座",33,1650,54450,null,0]
[8,"红外球型摄像机","1.名称 ：红外球型摄像机\n2.参数要求：快球,200W像素,20倍光学变焦,红外距离100M,AC24V供电,带背光补偿及高级宽动态功能\n3.安装方式：详设计\n4.监控立杆：3.5//米镀锌摄像机专用立杆(立杆材料厚度3.0MM,支臂长度0.5米,)，采用M16*16地脚螺栓。\n5.接地、防雷：接地采用热镀锌角钢L50*50*5、电源防雷器及信号防雷器满足国家标准要求；\n6.基础：C15混凝土支墩，500*500*800；\n7.基础开挖及回填方式综合考虑；满足设计及规范要求\n8.其他满足设计及规范要求\n9.设备品牌：浙江大华、海康威视、天地伟业\n10.其他：满足设计及规范要求","套",27,2800,75600,null,0]
[9,"红外枪型摄像机","1.名称红外枪型摄像机\n2.参数要求：200W像素,20倍光学变焦,红外距离100M,AC24V供电,带背光补偿及高级宽动态功能\n3.安装方式：详设计\n4.监控立杆：3.5米镀锌摄像机专用立杆(立杆材料厚度3.0MM,支臂长度0.5米,)，采用M16*16地脚螺栓。\n5.接地、防雷：接地采用热镀锌角钢L50*50*5、电源防雷器及信号防雷器满足国家标准要求\n6.基础：C15混凝土支墩，500*500*800\n7.基础开挖及回填方式综合考虑；满足设计及规范要求\n8.其他满足设计及规范要求\n9.设备品牌：浙江大华、海康威视、天地伟业\n10.其他：满足设计及规范要求","台","2",750,1500,null,0]
[10,"落地小型机柜","1.名称、材质：304不锈钢落地机柜 RD1\n2. 规格：450*600*350\n3. 其他要求：箱体内安装板深度可以调节，暗铰链链接,箱门开启角度达110°；\n4.安装方式：落地式安装\n5.设备基础：100厚C15混凝土垫层，M5水泥砂浆砌MU10标砖基础；\n6.接地：采用BV6.0接入人工接地体，30*3mm角钢与40*2mm热镀锌扁钢相连接，具体做法详见图纸；\n7.其余要求：满足规范及验收要求","台",7,750,5250,null,0]
[11,"摄像机电源 AC24V,3A","1.名称：摄像机电源 \n2.规格： AC24V,3A\n3.安装方式：安置与室外设备柜内\n4.其余要求：满足规范及验收要求","台",29,200,5800,null,0]
[12,"空气开关 AC220V  15A","1.名称：空开 \n2.型号规格：2P32A \n3.满足规范及验收要求","个",7,50,350,null,0]
[13,"4位插座,三孔/双孔两用","1.4位插座\n2.要求：白色4位20孔无线，新国标 阻燃PP料，安全门，内部插套，一体式无焊点铜条，通过3C认证\n3.其他要求：满足规范及验收要求","个",7,40,280,null,0]
[14,"4口光纤终端盒","1.名称：4口光纤终端盒\n2.要求：4口光纤终端盒满配SC法兰及尾纤\n3.其他要求：满足规范及验收要求","个",7,70,490,null,0]
[15,"接入交换机24口（含光模块）","1.名称：接入交换机24口（含光模块）\n2.要求：端口：24个10/100/1000Base-T电口(包含两个uplink口，可作为上行口)，2个1000Base-X SFP端口(uplink口)\n，MAC地址表：8K，交换容量：52Gbps，转发能力：38.7Mpps，包缓存：4Mbit \n3.模式切换：标准交换、端口隔离、汇聚上联、网络克隆\n4.其他要求：满足规范及验收要求","个",7,1200,8400,null,0]
[16,"IP功放150W","1.名称：IP功放150W\n2.电源 AC220V/50Hz、噪声比 话筒：>68dB   线路：>82dB、总谐波失真<0.1% at 1KHz、频率响应 60Hz-18KHz（±2dB）\n音调 低音：±10dB at 100Hz，高音：±10dBB at 10KHz、话筒输入灵敏度&阻抗：8mV/600Ω不平衡、线路输入灵敏度&阻抗：250mV/10KΩ不平衡\n、线路输出灵敏度&阻抗：1V/600Ω不平衡、默音调节 0-38dB、输出功率 180W、电源功耗 10-180、W机器尺寸 482 X 352 X 90mm；","个",7,1650,11550,null,0]
[17,"PVC25","1.名称 ：配管\n2.材质 规格：PVC25\n","m","8577",3.5,30019.5,null,0]
[18,"RVV2*1.5","1.名称 ：摄像机电源线\n2.型号、规格：RVV2*1.5； \n3.其余做法满足规范及验收要求","m","180",4.5,810,null,0]
[19,"主干电源线 YJV3*4","1.产品名称：交联聚乙烯绝缘聚氯乙烯护套阻燃电力电缆\n2.型号规格：YJV 3X4mm\n3.额定电压：0.6/1KV\n4.其余做法满足规范及验收要求","m","2850",21,59850,null,0]
[20,"4芯室外单模光缆","1.名称：4芯室外单模光缆\n2.敷设方式：满足规范及验收要求","m","2850",2.8,7980,null,0]
[21,"PVC32","1.名称 ：配管\n2.材质、规格：PVC32\n3.接地要求 ：按设计要求\n4.其他满足设计及规范要求","m","20",4.5,90,null,0]
[22,"RVV2*1","1.产品名称：软套线\n2.型号规格：RVV2*1mm2\n3.其余做法满足规范及验收要求","m",5700,3.2,18240,null,0]
[23,"六类网线","1.名称 ：双绞线\n2.规格 ：六类网线\n3.其余做法满足规范及验收要求","m",5700,2.6,14820,null,0]
[24,"光纤跳线","1.名称：光纤跳线\n2.规格：LC-LC单模双芯光纤跳线（9/125,3米,3.0mm）","对",7,60,420,null,0]
[25,"视频系统调试","1.系统调试测试\n2.满足规范及验收使用要求","项",1,1500,1500,null,0]
["合　　计",{"$nulls":5},{"$f":"SUM(G6:G30)","v":388979.45},null,{"$f":"SUM(I6:I30)","v":0}]
["报价说明：投标人需按提供的报价格式要求及公式填报价格明细，未按提供格式填报价格明细、所报总价高于最高限价的均为无效报价，采购人不予接受。同时在工程量清单中公布最高全费用单价限价，投标人的全费用综合单价也不得超过综合单价限价，否则，采购人将不予以接受。"]